{"text_format":"3","workbook":"xlsx","n_sheets":1,"sheets":["Custos da reforma do banheiro"],"not_rendered":{"defined_names":3},"read":"whole","date_system":"1900"}

{"sheet":"Custos da reforma do banheiro","index":0,"n_rows":23,"n_cols":10,"rows_kept":23,"merged":[[1,1,2,3],[2,4,2,6],[2,7,2,9],[21,1,21,3],[21,4,21,6],[21,7,21,9],[22,1,22,3],[22,4,22,6],[22,7,22,9]]}
[null,"Planilha de custos da reforma do banheiro"]
[null,"OBSERVAÇÃO: as colunas de diferença na tabela mostram se os valores reais excedem os valores estimados.  Os números em vermelho mostram valores excedidos (negativos) e os números em preto mostram valores inferiores (positivos). "]
[{"$nulls":4},"Custo discriminado (R$)",null,null,"Custo total (R$)"]
[null,"Área","Itens","Quantidade","Valor estimado","Valor real","Diferença","Valor estimado ","Valor real ","Diferença "]
[null,"Banheira/Chuveiro","Banheira com tubulação em ferro fundido de 5\" padrão",1,{"v":250,"d":"R$ 250.00"},{"$f":"RANDBETWEEN(E5+2,E5+20)","v":{"v":258,"d":"R$ 258.00"}},{"$f":"IFERROR(Custos[[#This Row],[Valor estimado]]-Custos[[#This Row],[Valor real]], \"\")","v":{"v":-8,"d":"-R$ 8.00"}},{"$f":"IFERROR(Custos[[#This Row],[Quantidade]]*Custos[[#This Row],[Valor estimado]], \"\")","v":{"v":250,"d":"R$ 250.00"}},{"$f":"IFERROR(Custos[[#This Row],[Quantidade]]*Custos[[#This Row],[Valor real]], \"\")","v":{"v":258,"d":"R$ 258.00"}},{"$f":"IFERROR(Custos[[#This Row],[Valor estimado ]]-Custos[[#This Row],[Valor real ]], \"\")","v":{"v":-8,"d":"-R$ 8.00"}}]
[null,"Banheira/Chuveiro","Portas de chuveiro articuladas padrão",1,{"v":200,"d":"R$ 200.00"},{"v":206,"d":"R$ 206.00"},{"$f":"IFERROR(Custos[[#This Row],[Valor estimado]]-Custos[[#This Row],[Valor real]], \"\")","v":{"v":-6,"d":"-R$ 6.00"}},{"$f":"IFERROR(Custos[[#This Row],[Quantidade]]*Custos[[#This Row],[Valor estimado]], \"\")","v":{"v":200,"d":"R$ 200.00"}},{"$f":"IFERROR(Custos[[#This Row],[Quantidade]]*Custos[[#This Row],[Valor real]], \"\")","v":{"v":206,"d":"R$ 206.00"}},{"$f":"IFERROR(Custos[[#This Row],[Valor estimado ]]-Custos[[#This Row],[Valor real ]], \"\")","v":{"v":-6,"d":"-R$ 6.00"}}]
[null,"Banheira/Chuveiro","Chuveiro padrão",1,{"v":50,"d":"R$ 50.00"},{"v":67,"d":"R$ 67.00"},{"$f":"IFERROR(Custos[[#This Row],[Valor estimado]]-Custos[[#This Row],[Valor real]], \"\")","v":{"v":-17,"d":"-R$ 17.00"}},{"$f":"IFERROR(Custos[[#This Row],[Quantidade]]*Custos[[#This Row],[Valor estimado]], \"\")","v":{"v":50,"d":"R$ 50.00"}},{"$f":"IFERROR(Custos[[#This Row],[Quantidade]]*Custos[[#This Row],[Valor real]], \"\")","v":{"v":67,"d":"R$ 67.00"}},{"$f":"IFERROR(Custos[[#This Row],[Valor estimado ]]-Custos[[#This Row],[Valor real ]], \"\")","v":{"v":-17,"d":"-R$ 17.00"}}]
[null,"Banheira/Chuveiro","Revestimento de banheira padrão",1,{"v":200,"d":"R$ 200.00"},{"v":213,"d":"R$ 213.00"},{"$f":"IFERROR(Custos[[#This Row],[Valor estimado]]-Custos[[#This Row],[Valor real]], \"\")","v":{"v":-13,"d":"-R$ 13.00"}},{"$f":"IFERROR(Custos[[#This Row],[Quantidade]]*Custos[[#This Row],[Valor estimado]], \"\")","v":{"v":200,"d":"R$ 200.00"}},{"$f":"IFERROR(Custos[[#This Row],[Quantidade]]*Custos[[#This Row],[Valor real]], \"\")","v":{"v":213,"d":"R$ 213.00"}},{"$f":"IFERROR(Custos[[#This Row],[Valor estimado ]]-Custos[[#This Row],[Valor real ]], \"\")","v":{"v":-13,"d":"-R$ 13.00"}}]
[null,"Armários","Armário de medicamentos de 60 cm luxo",1,{"v":200,"d":"R$ 200.00"},{"v":215,"d":"R$ 215.00"},{"$f":"IFERROR(Custos[[#This Row],[Valor estimado]]-Custos[[#This Row],[Valor real]], \"\")","v":{"v":-15,"d":"-R$ 15.00"}},{"$f":"IFERROR(Custos[[#This Row],[Quantidade]]*Custos[[#This Row],[Valor estimado]], \"\")","v":{"v":200,"d":"R$ 200.00"}},{"$f":"IFERROR(Custos[[#This Row],[Quantidade]]*Custos[[#This Row],[Valor real]], \"\")","v":{"v":215,"d":"R$ 215.00"}},{"$f":"IFERROR(Custos[[#This Row],[Valor estimado ]]-Custos[[#This Row],[Valor real ]], \"\")","v":{"v":-15,"d":"-R$ 15.00"}}]
[null,"Armários","Penteadeira modular de 70 cm padrão",2,{"v":100,"d":"R$ 100.00"},{"v":107,"d":"R$ 107.00"},{"$f":"IFERROR(Custos[[#This Row],[Valor estimado]]-Custos[[#This Row],[Valor real]], \"\")","v":{"v":-7,"d":"-R$ 7.00"}},{"$f":"IFERROR(Custos[[#This Row],[Quantidade]]*Custos[[#This Row],[Valor estimado]], \"\")","v":{"v":200,"d":"R$ 200.00"}},{"$f":"IFERROR(Custos[[#This Row],[Quantidade]]*Custos[[#This Row],[Valor real]], \"\")","v":{"v":214,"d":"R$ 214.00"}},{"$f":"IFERROR(Custos[[#This Row],[Valor estimado ]]-Custos[[#This Row],[Valor real ]], \"\")","v":{"v":-14,"d":"-R$ 14.00"}}]
[null,"Bancadas","Azulejo de luxo em cerâmica (qtd. em metros lineares)",5,{"v":22.5,"d":"R$ 22.50"},{"v":32,"d":"R$ 32.00"},{"$f":"IFERROR(Custos[[#This Row],[Valor estimado]]-Custos[[#This Row],[Valor real]], \"\")","v":{"v":-9.5,"d":"-R$ 9.50"}},{"$f":"IFERROR(Custos[[#This Row],[Quantidade]]*Custos[[#This Row],[Valor estimado]], \"\")","v":{"v":112.5,"d":"R$ 112.50"}},{"$f":"IFERROR(Custos[[#This Row],[Quantidade]]*Custos[[#This Row],[Valor real]], \"\")","v":{"v":160,"d":"R$ 160.00"}},{"$f":"IFERROR(Custos[[#This Row],[Valor estimado ]]-Custos[[#This Row],[Valor real ]], \"\")","v":{"v":-47.5,"d":"-R$ 47.50"}}]
[null,"Torneiras","Torneira para banheira padrão",1,{"v":90,"d":"R$ 90.00"},{"v":92,"d":"R$ 92.00"},{"$f":"IFERROR(Custos[[#This Row],[Valor estimado]]-Custos[[#This Row],[Valor real]], \"\")","v":{"v":-2,"d":"-R$ 2.00"}},{"$f":"IFERROR(Custos[[#This Row],[Quantidade]]*Custos[[#This Row],[Valor estimado]], \"\")","v":{"v":90,"d":"R$ 90.00"}},{"$f":"IFERROR(Custos[[#This Row],[Quantidade]]*Custos[[#This Row],[Valor real]], \"\")","v":{"v":92,"d":"R$ 92.00"}},{"$f":"IFERROR(Custos[[#This Row],[Valor estimado ]]-Custos[[#This Row],[Valor real ]], \"\")","v":{"v":-2,"d":"-R$ 2.00"}}]
[null,"Torneiras","Torneira para chuveiro em peça única padrão",1,{"v":115,"d":"R$ 115.00"},{"v":122,"d":"R$ 122.00"},{"$f":"IFERROR(Custos[[#This Row],[Valor estimado]]-Custos[[#This Row],[Valor real]], \"\")","v":{"v":-7,"d":"-R$ 7.00"}},{"$f":"IFERROR(Custos[[#This Row],[Quantidade]]*Custos[[#This Row],[Valor estimado]], \"\")","v":{"v":115,"d":"R$ 115.00"}},{"$f":"IFERROR(Custos[[#This Row],[Quantidade]]*Custos[[#This Row],[Valor real]], \"\")","v":{"v":122,"d":"R$ 122.00"}},{"$f":"IFERROR(Custos[[#This Row],[Valor estimado ]]-Custos[[#This Row],[Valor real ]], \"\")","v":{"v":-7,"d":"-R$ 7.00"}}]
[null,"Torneiras","Torneira para pia padrão",1,{"v":95,"d":"R$ 95.00"},{"v":109,"d":"R$ 109.00"},{"$f":"IFERROR(Custos[[#This Row],[Valor estimado]]-Custos[[#This Row],[Valor real]], \"\")","v":{"v":-14,"d":"-R$ 14.00"}},{"$f":"IFERROR(Custos[[#This Row],[Quantidade]]*Custos[[#This Row],[Valor estimado]], \"\")","v":{"v":95,"d":"R$ 95.00"}},{"$f":"IFERROR(Custos[[#This Row],[Quantidade]]*Custos[[#This Row],[Valor real]], \"\")","v":{"v":109,"d":"R$ 109.00"}},{"$f":"IFERROR(Custos[[#This Row],[Valor estimado ]]-Custos[[#This Row],[Valor real ]], \"\")","v":{"v":-14,"d":"-R$ 14.00"}}]
[null,"Colocação do piso","Azulejo em cerâmica padrão (qtd. em metros quadrados)",35,{"v":12,"d":"R$ 12.00"},{"v":20,"d":"R$ 20.00"},{"$f":"IFERROR(Custos[[#This Row],[Valor estimado]]-Custos[[#This Row],[Valor real]], \"\")","v":{"v":-8,"d":"-R$ 8.00"}},{"$f":"IFERROR(Custos[[#This Row],[Quantidade]]*Custos[[#This Row],[Valor estimado]], \"\")","v":{"v":420,"d":"R$ 420.00"}},{"$f":"IFERROR(Custos[[#This Row],[Quantidade]]*Custos[[#This Row],[Valor real]], \"\")","v":{"v":700,"d":"R$ 700.00"}},{"$f":"IFERROR(Custos[[#This Row],[Valor estimado ]]-Custos[[#This Row],[Valor real ]], \"\")","v":{"v":-280,"d":"-R$ 280.00"}}]
[null,"Ferragens","Suporte para toalha padrão",2,{"v":15,"d":"R$ 15.00"},{"v":22,"d":"R$ 22.00"},{"$f":"IFERROR(Custos[[#This Row],[Valor estimado]]-Custos[[#This Row],[Valor real]], \"\")","v":{"v":-7,"d":"-R$ 7.00"}},{"$f":"IFERROR(Custos[[#This Row],[Quantidade]]*Custos[[#This Row],[Valor estimado]], \"\")","v":{"v":30,"d":"R$ 30.00"}},{"$f":"IFERROR(Custos[[#This Row],[Quantidade]]*Custos[[#This Row],[Valor real]], \"\")","v":{"v":44,"d":"R$ 44.00"}},{"$f":"IFERROR(Custos[[#This Row],[Valor estimado ]]-Custos[[#This Row],[Valor real ]], \"\")","v":{"v":-14,"d":"-R$ 14.00"}}]
[null,"Ferragens","Porta-papel higiênico",1,{"v":10,"d":"R$ 10.00"},{"v":26,"d":"R$ 26.00"},{"$f":"IFERROR(Custos[[#This Row],[Valor estimado]]-Custos[[#This Row],[Valor real]], \"\")","v":{"v":-16,"d":"-R$ 16.00"}},{"$f":"IFERROR(Custos[[#This Row],[Quantidade]]*Custos[[#This Row],[Valor estimado]], \"\")","v":{"v":10,"d":"R$ 10.00"}},{"$f":"IFERROR(Custos[[#This Row],[Quantidade]]*Custos[[#This Row],[Valor real]], \"\")","v":{"v":26,"d":"R$ 26.00"}},{"$f":"IFERROR(Custos[[#This Row],[Valor estimado ]]-Custos[[#This Row],[Valor real ]], \"\")","v":{"v":-16,"d":"-R$ 16.00"}}]
[null,"Iluminação","Luzes embutidas padrão",4,{"v":25,"d":"R$ 25.00"},{"v":35,"d":"R$ 35.00"},{"$f":"IFERROR(Custos[[#This Row],[Valor estimado]]-Custos[[#This Row],[Valor real]], \"\")","v":{"v":-10,"d":"-R$ 10.00"}},{"$f":"IFERROR(Custos[[#This Row],[Quantidade]]*Custos[[#This Row],[Valor estimado]], \"\")","v":{"v":100,"d":"R$ 100.00"}},{"$f":"IFERROR(Custos[[#This Row],[Quantidade]]*Custos[[#This Row],[Valor real]], \"\")","v":{"v":140,"d":"R$ 140.00"}},{"$f":"IFERROR(Custos[[#This Row],[Valor estimado ]]-Custos[[#This Row],[Valor real ]], \"\")","v":{"v":-40,"d":"-R$ 40.00"}}]
[null,"Pias","Vaso sanitário padrão",2,{"v":60,"d":"R$ 60.00"},{"v":66,"d":"R$ 66.00"},{"$f":"IFERROR(Custos[[#This Row],[Valor estimado]]-Custos[[#This Row],[Valor real]], \"\")","v":{"v":-6,"d":"-R$ 6.00"}},{"$f":"IFERROR(Custos[[#This Row],[Quantidade]]*Custos[[#This Row],[Valor estimado]], \"\")","v":{"v":120,"d":"R$ 120.00"}},{"$f":"IFERROR(Custos[[#This Row],[Quantidade]]*Custos[[#This Row],[Valor real]], \"\")","v":{"v":132,"d":"R$ 132.00"}},{"$f":"IFERROR(Custos[[#This Row],[Valor estimado ]]-Custos[[#This Row],[Valor real ]], \"\")","v":{"v":-12,"d":"-R$ 12.00"}}]
[null,"Outros",null,1,{"v":20,"d":"R$ 20.00"},{"v":23,"d":"R$ 23.00"},{"$f":"IFERROR(Custos[[#This Row],[Valor estimado]]-Custos[[#This Row],[Valor real]], \"\")","v":{"v":-3,"d":"-R$ 3.00"}},{"$f":"IFERROR(Custos[[#This Row],[Quantidade]]*Custos[[#This Row],[Valor estimado]], \"\")","v":{"v":20,"d":"R$ 20.00"}},{"$f":"IFERROR(Custos[[#This Row],[Quantidade]]*Custos[[#This Row],[Valor real]], \"\")","v":{"v":23,"d":"R$ 23.00"}},{"$f":"IFERROR(Custos[[#This Row],[Valor estimado ]]-Custos[[#This Row],[Valor real ]], \"\")","v":{"v":-3,"d":"-R$ 3.00"}}]
[null,"Subtotal",null,null,{"$f":"SUBTOTAL(109,Custos[Valor estimado])","v":{"v":1464.5,"d":"R$ 1,464.50"}},{"$f":"SUBTOTAL(109,Custos[Valor real])","v":{"v":1613,"d":"R$ 1,613.00"}},{"$f":"SUBTOTAL(109,Custos[Diferença])","v":{"v":-148.5,"d":"-R$ 148.50"}},{"$f":"SUBTOTAL(109,Custos[[Valor estimado ]])","v":{"v":2212.5,"d":"R$ 2,212.50"}},{"$f":"SUBTOTAL(109,Custos[[Valor real ]])","v":{"v":2721,"d":"R$ 2,721.00"}},{"$f":"SUBTOTAL(109,Custos[[Diferença ]])","v":{"v":-508.5,"d":"-R$ 508.50"}}]
[null,"Custos inesperados (mais 30% estimado)",null,null,{"$f":"IFERROR(Custos[[#Totals],[Valor estimado]]*0.3, \"\")","v":{"v":439.34999999999997,"d":"R$ 439.35"}},null,null,{"$f":"IFERROR(Custos[[#Totals],[Valor estimado ]]*0.3, \"\")","v":{"v":663.75,"d":"R$ 663.75"}}]
[null,"Custos totais",null,null,{"$f":"IFERROR(SUM(E21:E21), \"\")","v":{"v":1464.5,"d":"R$ 1,464.50"}},null,null,{"$f":"IFERROR(SUM(Custos[[#Totals],[Valor estimado ]],Excedente), \"\")","v":{"v":2876.25,"d":"R$ 2,876.25"}}]